lending/lending_fUSD_20240605
["ID","MTS","AMOUNT","RATE_DAILY","PERIOD"]
[328609882,1717606246191,-576.38867864,0.00029478,2]
[328609884,1717606246201,-277.37938021,0.00029478,2]
[328609885,1717606246212,-563.0314308,0.00029478,2]
[328609887,1717606246222,-840.41081101,0.00029478,2]
[328609889,1717606246232,-840.41081101,0.00029478,2]
[328609890,1717606246241,-840.41081101,0.00029478,2]
[328609891,1717606246251,-393.18791222,0.00029499,4]
[328609892,1717606246260,-105.91198664,0.00029499,4]
[328609893,1717606246314,-2054.44509093,0.00029499,4]
[328609894,1717606246326,-3264.2630295,0.00029499,4]
[328609895,1717606246337,-893.33989293,0.00029499,4]
[328609896,1717606246347,-500.0,0.00029499,4]
[328609897,1717606246356,-500.0,0.00029499,4]
[328609898,1717606246365,-2490.69510707,0.00029499,4]
[328609899,1717606246377,-3827.26489293,0.00029499,4]
[328609900,1717606246387,-500.0,0.00029499,4]
[328609901,1717606246396,-500.0,0.00029499,4]
[328609902,1717606246406,-500.0,0.00029499,4]
[328609903,1717606246416,-500.0,0.00029499,4]
[328609904,1717606246425,-311.11592707,0.00029499,4]
[328609905,1717606246437,-188.88407293,0.00029499,4]
[328609906,1717606246446,-384.54606472,0.00029499,4]
[328609907,1717606246564,-115.45393528,0.00029499,4]
[328609908,1717606246573,-241.18106472,0.00029499,4]
[328609909,1717606246585,-4436.36893528,0.00029499,4]
[328609910,1717606246594,-936.10580402,0.00029499,4]
[328609916,1717606246953,167.14,0.00024384,2]
[328609917,1717606263059,226.57668191,0.00022124,2]
[328609919,1717606279058,226.57668191,0.00022124,2]
[328609920,1717606303060,226.57668191,0.00022124,2]
[328609921,1717606317058,226.57668191,0.00022124,2]
[328609922,1717606333061,226.57668191,0.00022124,2]
[328609923,1717606345076,162.29,0.00022651,2]
[328609924,1717606347693,42146.44979233,0.00022124,2]
[328609925,1717606353131,226.57668191,0.00022124,2]
[328609934,1717607154148,-195.60497769,0.00017257,2]
[328609935,1717607154170,-481.6174682,0.00017258,2]
[328609936,1717607154192,-767.11436553,0.00017259,2]
[328609937,1717607230185,-2350.469972,0.00017073,2]
[328609938,1717607230207,-1620.01643354,0.00017159,2]
[328609939,1717607230229,-150.0,0.00017258,2]
[328609940,1717607230260,-150.0,0.00017258,2]
[328609941,1717607230287,-1601.73450212,0.00017259,2]
[328609942,1717607230309,-35459.35989058,0.00017259,2]
[328609943,1717607230336,-492.10282983,0.0002,2]
[328609944,1717607230357,-226.57668191,0.000201,2]
[328609945,1717607230383,-606.89,0.00020631,2]
[328609946,1717607230404,-7773.99,0.00020631,2]
[328609947,1717607230426,-163.53,0.00020731,2]
[328609948,1717607230447,-1403.59,0.00020912,2]
[328609949,1717607230467,-957.42566488,0.00021018,2]
[328609950,1717607230491,-2630.34,0.00021018,2]
[328609951,1717607230511,-150.99,0.00021018,2]
[328609952,1717607230531,-807.03,0.00021287,2]
[328609953,1717607230551,-250.0,0.00021918,2]
[328609954,1717607230572,-797.65,0.00022013,2]
[328609955,1717607230593,-499.99,0.00022013,2]
[328609956,1717607230613,-3467.67,0.00022013,2]
[328609957,1717607230656,-992.92434576,0.00022023,2]
[328609958,1717607230696,-269.99564848,0.00022121,2]
[328609959,1717607230717,-1248.92368414,0.00022121,2]
[328609960,1717607230739,-2702.98299518,0.00022121,2]
[328609961,1717607230761,-1636.31612839,0.00022121,2]
[328609962,1717607230782,-2236.93803991,0.00022121,7]
[328609963,1717607230803,-2005.80698001,0.00022121,2]
[328609964,1717607230824,-155.34173793,0.00022121,2]
[328609965,1717607230845,-2819.49898177,0.00022121,2]
[328609966,1717607230866,-1217.86338215,0.00022121,2]
[328609967,1717607230889,-1263.60467188,0.00022121,2]
[328609968,1717607230910,-3091.9662736,0.00022121,2]
[328609969,1717607230931,-1899.83531472,0.00022121,2]
[328609970,1717607230952,-334.70338096,0.00022121,2]
[328609971,1717607230972,-458.2828093,0.00022121,2]
[328609972,1717607230993,-6929.7053808,0.00022121,2]
[328609973,1717607231015,-195.52623969,0.00022121,2]
[328609974,1717607231048,-338.15012463,0.00022121,2]
[328609975,1717607231079,-346.91774205,0.00022121,2]
[328609976,1717607231109,-155.22687568,0.00022121,2]
[328609977,1717607231140,-201.47569243,0.00022122,2]
[328609978,1717607231167,-1335.70611775,0.00022122,2]
[328609979,1717607231194,-179.72498409,0.00022122,2]
[328609980,1717607231221,-346.8852578,0.00022122,2]
[328609981,1717607231249,-529.35848337,0.00022123,2]
[328609982,1717607231276,-7269.35807773,0.00022123,2]
[328609983,1717607234096,-355.8827713,0.00022024,2]
[328609984,1717607234121,-6966.23161581,0.00022123,2]
[328609985,1717607234159,-1899.12750249,0.00022123,2]
[328609986,1717607237106,-27605.12157894,0.00022123,2]
[328609987,1717607240119,-185618.09727711,0.00022123,2]
[328609988,1717607246197,-226.57668191,0.000201,2]
[328609989,1717607246222,-321.60000691,0.00022024,2]
[328609990,1717607246248,-108076.56790752,0.00022123,2]
[328609991,1717607349113,-880.60466344,0.00016396,2]
[328609992,1717607349135,-226.57668191,0.000201,2]
[328609993,1717607349157,-2368.84886765,0.00022121,2]
[328609994,1717607349179,-12536.483787,0.00022122,2]
[328609995,1717607350112,-12002.31767157,0.00022122,2]
[328609996,1717607350135,-7927.17732843,0.00022123,2]
[328609997,1717607350168,-3863.4535,0.00022123,2]
[328609998,1717607350196,-6889.4244,0.00022123,2]
[328609999,1717607354092,-27911.932,0.00022123,2]
[328610000,1717607357099,-58941.516,0.00022123,2]
[328610001,1717607360091,-10725.534,0.00022123,2]
[328610002,1717607364117,-226.57668191,0.000201,2]
[328610003,1717607364137,-2687.40761809,0.00022123,2]
[328610004,1717607364164,-145821.1,0.00022123,2]
[328610005,1717607364189,-38207.38330817,0.00022123,2]
[328610006,1717607370185,-321.6000069,0.00022024,2]
[328610007,1717607370204,-2368.84886765,0.00022122,2]
[328610008,1717607370225,-48880.27712545,0.00022123,2]
[328610037,1717607432476,-226.57668191,0.000201,2]
[328610038,1717607432486,-427.97453437,0.00022108,2]
[328610039,1717607432498,-1054.71998718,0.00022108,2]
[328610040,1717607432658,-386.97857912,0.00022108,2]
[328610041,1717607432670,-32745.633552,0.00022108,2]
[328610042,1717607432723,-48325.129675,0.00022108,2]
[328610043,1717607432735,-11928.05461633,0.00022108,2]
[328610044,1717607432744,-408.75234774,0.00022122,2]
[328610045,1717607432754,-810.03749128,0.00022123,2]
[328610046,1717607432763,-47771.353663,0.00022124,2]
[328610047,1717607432774,-273.06418212,0.00022124,2]
[328610068,1717607438625,-1181.11751663,0.00022124,2]
[328610069,1717607438682,-517.87253659,0.00022124,2]
[328610070,1717607438739,-544.49802541,0.00022124,2]
[328610071,1717607438751,-1200.0059874,0.00022124,2]
[328610080,1717607441315,-1720.40192904,0.00022124,2]
[328610081,1717607441373,-3262.98,0.00022124,2]
[328610088,1717607443668,-1465.06090574,0.00022124,2]
[328610089,1717607443741,-6308.87064077,0.00022124,2]
[328610090,1717607444068,-285.02855817,0.00022124,2]
[328610091,1717607444442,-4979.27000001,0.00022124,2]
[328610101,1717607447092,-452.89746239,0.00019689,2]
[328610102,1717607447102,-31392.49591492,0.00022124,2]
[328610103,1717607447111,-970.76240948,0.00022124,2]
[328610104,1717607447121,-4274.24,0.00022124,2]
[328610105,1717607447131,-12323.41,0.00022366,2]
[328610106,1717607447140,-250.0,0.00022387,2]
[328610107,1717607447150,-11276.04,0.00022971,2]
[328610108,1717607447159,-1000.0,0.00023113,2]
[328610109,1717607447168,-992.92434576,0.00023148,2]
[328610110,1717607447177,-150.0,0.00023236,2]
[328610111,1717607447187,-519.73,0.00023256,2]
[328610112,1717607447196,-204.56,0.0002379,2]
[328610113,1717607447205,-583.1,0.00023996,2]
[328610114,1717607447214,-992.92434576,0.00024274,2]
[328610115,1717607447223,-156.17,0.00024384,2]
[328610116,1717607447232,-250.0,0.000247,7]
[328610117,1717607447242,-161.28726101,0.00024798,2]
[328610118,1717607447251,-161.28726099,0.00024798,2]
[328610119,1717607447260,-161.28726099,0.00024798,2]
[328610120,1717607447269,-161.28726099,0.00024798,2]
[328610121,1717607447278,-1250.0,0.00025,2]
[328610122,1717607447288,-600.0,0.00025,2]
[328610123,1717607447298,-1126.2080859,0.00025227,3]
[328610124,1717607447307,-1126.20808589,0.00025227,3]
[328610125,1717607447316,-162.09,0.00025227,2]
[328610126,1717607447325,-176.05,0.00025339,2]
[328610127,1717607447335,-992.92434576,0.00025399,2]
[328610128,1717607447344,-200.0,0.00025416,2]
[328610129,1717607447353,-724.68,0.00025914,2]
[328610130,1717607447362,-904.0,0.00025914,2]
[328610131,1717607447371,-250.0,0.00025952,2]
[328610132,1717607447381,-151.22332211,0.00025962,2]
[328610133,1717607447391,-1000.0,0.00026002,2]
[328610134,1717607447405,-940.76,0.00026194,2]
[328610135,1717607447414,-583.1,0.0002626,2]
[328610136,1717607447423,-4472.55,0.00026376,2]
[328610137,1717607447433,-992.92434576,0.00026524,2]
[328610138,1717607447442,-319.04,0.00026574,2]
[328610139,1717607447451,-23870.0,0.00026622,2]
[328610140,1717607447460,-1300.0,0.00027,2]
[328610141,1717607447471,-3859.11910486,0.000272,2]
[328610142,1717607447480,-152.48,0.00027378,2]
[328610143,1717607447489,-500.0,0.00027397,4]
[328610144,1717607447499,-500.0,0.00027397,4]
[328610145,1717607447508,-500.0,0.00027397,4]
[328610146,1717607447518,-500.0,0.00027397,4]
[328610147,1717607447527,-500.0,0.00027397,4]
[328610148,1717607447536,-500.0,0.00027397,4]
[328610149,1717607447547,-500.0,0.00027397,4]
[328610150,1717607447556,-339.68267926,0.00027397,4]
[328610151,1717607447566,-500.0,0.00027397,4]
[328610152,1717607447576,-500.0,0.00027397,4]
[328610153,1717607447586,-500.0,0.00027397,4]
[328610154,1717607447595,-1734.57,0.00027397,4]
[328610155,1717607447605,-1734.57,0.00027397,4]
[328610156,1717607447614,-1734.57,0.00027397,4]
[328610157,1717607447624,-636.59,0.00027397,4]
[328610158,1717607447633,-636.59,0.00027397,4]
[328610159,1717607447642,-636.59,0.00027397,4]
[328610160,1717607447661,-500.0,0.00027397,4]
[328610161,1717607447672,-500.0,0.00027397,4]
[328610162,1717607447682,-500.0,0.00027397,4]
[328610163,1717607447691,-947.27,0.00027397,4]
[328610164,1717607447701,-947.27,0.00027397,4]
[328610165,1717607447710,-947.27,0.00027397,4]
[328610166,1717607447719,-241.85137592,0.00027397,4]
[328610167,1717607447729,-2351.73,0.00027397,4]
[328610168,1717607447739,-2351.73,0.00027397,4]
[328610169,1717607447749,-2351.73,0.00027397,4]
[328610170,1717607447758,-500.0,0.00027397,4]
[328610171,1717607447768,-500.0,0.00027397,4]
[328610172,1717607447779,-500.0,0.00027397,4]
[328610173,1717607447788,-500.0,0.00027397,4]
[328610174,1717607447799,-500.0,0.00027397,4]
[328610175,1717607447810,-500.0,0.00027397,4]
[328610176,1717607447820,-500.0,0.00027397,4]
[328610177,1717607447830,-152.77454774,0.00027397,4]
[328610178,1717607447840,-500.0,0.00027397,4]
[328610179,1717607447849,-198.61776145,0.00027397,4]
[328610180,1717607447859,-1570.57,0.00027397,4]
[328610181,1717607447869,-1570.57,0.00027397,4]
[328610182,1717607447879,-500.0,0.00027397,4]
[328610183,1717607447888,-500.0,0.00027397,4]
[328610184,1717607447897,-500.0,0.00027397,4]
[328610185,1717607447909,-500.0,0.00027397,4]
[328610186,1717607447927,-500.0,0.00027397,4]
[328610187,1717607447947,-500.0,0.00027397,4]
[328610188,1717607447968,-500.0,0.00027397,4]
[328610189,1717607447995,-500.0,0.00027397,4]
[328610190,1717607448022,-500.0,0.00027397,4]
[328610191,1717607448048,-216.64150349,0.00027397,4]
[328610192,1717607448085,-500.0,0.00027397,4]
[328610193,1717607448116,-500.0,0.00027397,4]
[328610194,1717607448125,-500.0,0.00027397,4]
[328610195,1717607448135,-500.0,0.00027397,4]
[328610196,1717607448144,-500.0,0.00027397,4]
[328610197,1717607448154,-500.0,0.00027397,4]
[328610198,1717607448163,-500.0,0.00027397,4]
[328610199,1717607448172,-500.0,0.00027397,4]
[328610200,1717607448182,-500.0,0.00027397,4]
[328610201,1717607448191,-819.91,0.00027397,4]
[328610202,1717607448201,-819.91,0.00027397,4]
[328610203,1717607448210,-500.0,0.00027397,4]
[328610204,1717607448219,-500.0,0.00027397,4]
[328610205,1717607448229,-500.0,0.00027397,4]
[328610206,1717607448238,-500.0,0.00027397,4]
[328610207,1717607448247,-371.77305621,0.00027397,4]
[328610208,1717607448257,-500.0,0.00027397,4]
[328610209,1717607448267,-500.0,0.00027397,4]
[328610210,1717607448276,-500.0,0.00027397,4]
[328610211,1717607448287,-500.0,0.00027397,4]
[328610212,1717607448299,-500.0,0.00027397,4]
[328610213,1717607448309,-703.86,0.00027397,4]
[328610214,1717607448318,-703.86,0.00027397,4]
[328610215,1717607448327,-3640.11,0.00027397,4]
[328610216,1717607448336,-154.22,0.000274,2]
[328610217,1717607448345,-992.92434576,0.00027649,2]
[328610218,1717607448355,-152.48,0.00027663,2]
[328610219,1717607448364,-1500.0,0.00027913,2]
[328610220,1717607448374,-152.48,0.00027949,2]
[328610221,1717607448383,-8094.76337862,0.00028,2]
[328610222,1717607448393,-167.45,0.00028176,2]
[328610223,1717607448406,-152.48,0.00028234,2]
[328610224,1717607448416,-1749.99,0.00028451,2]
[328610225,1717607448426,-6660.0,0.000285,3]
[328610226,1717607448435,-152.48,0.00028519,2]
[328610227,1717607448638,-583.1,0.00028524,2]
[328610228,1717607448648,-204.56,0.00028548,2]
[328610229,1717607448656,-1500.0,0.00028601,2]
[328610230,1717607448666,-992.92434576,0.00028775,2]
[328610231,1717607448675,-500.0,0.000288,7]
[328610232,1717607448684,-200.0,0.000288,10]
[328610233,1717607448693,-152.48,0.00028805,2]
[328610234,1717607448702,-1000.0,0.00028892,2]
[328610235,1717607448711,-500.0,0.000289,10]
[328610236,1717607448720,-940.76,0.00028934,2]
[328610237,1717607448729,-265.85210799,0.0002899,2]
[328610238,1717607448739,-500.0,0.00028999,4]
[328610239,1717607448749,-1570.57,0.00028999,4]
[328610240,1717607448758,-500.0,0.00028999,4]
[328610241,1717607448767,-500.0,0.00028999,4]
[328610242,1717607448776,-500.0,0.00028999,4]
[328610243,1717607448785,-500.0,0.00028999,4]
[328610244,1717607448799,-368.47656337,0.00028999,4]
[328610245,1717607448808,-819.91,0.00028999,4]
[328610246,1717607448817,-500.0,0.00028999,4]
[328610247,1717607448827,-500.0,0.00028999,4]
[328610248,1717607448836,-500.0,0.00028999,4]
[328610249,1717607448845,-703.86,0.00028999,4]
[328610250,1717607448855,-6850.0,0.00029,10]
[328610251,1717607448864,-11733.0,0.00029,5]
[328610252,1717607448873,-441.0,0.00029034,2]
[328610253,1717607448883,-800.0,0.000291,10]
[328610254,1717607448892,-1100.0,0.000292,10]
[328610255,1717607448901,-3000.0,0.000292,2]
[328610256,1717607448911,-150.0,0.00029212,2]
[328610257,1717607448920,-1500.0,0.00029275,2]
[328610258,1717607448930,-150.0,0.0002928,2]
[328610259,1717607448939,-150.0,0.00029296,2]
[328610260,1717607448948,-1400.0,0.000293,10]
[328610261,1717607448957,-150.0,0.00029303,2]
[328610262,1717607448967,-150.0,0.0002934,2]
[328610263,1717607448976,-150.0,0.00029352,2]
[328610264,1717607448986,-706.0092,0.00029376,2]
[328610265,1717607448995,-3398.46681465,0.0002938,2]
[328610266,1717607449005,-150.0,0.00029381,2]
[328610267,1717607449014,-150.0,0.00029389,2]
[328610268,1717607449024,-528.44,0.00029397,3]
[328610269,1717607449033,-1000.0,0.00029398,2]
[328610270,1717607449042,-173.00400828,0.000294,2]
[328610271,1717607449056,-345.0,0.000294,2]
[328610272,1717607449065,-1595.90594977,0.000294,2]
[328610273,1717607449074,-152.55259906,0.000294,2]
[328610274,1717607449084,-200.0,0.000294,10]
[328610275,1717607449093,-150.0,0.000294,6]
[328610276,1717607449102,-150.0,0.000294,6]
[328610277,1717607449111,-873.01417508,0.00029407,2]
[328610278,1717607449121,-150.0,0.00029408,2]
[328610279,1717607449131,-150.0,0.00029422,2]
[328610280,1717607449140,-150.0,0.00029428,2]
[328610281,1717607449150,-301.76085115,0.00029428,2]
[328610282,1717607449159,-150.0,0.00029435,2]
[328610283,1717607449168,-1595.90594971,0.00029445,2]
[328610284,1717607449178,-150.0,0.00029453,2]
[328610285,1717607449187,-300.0,0.00029462,2]
[328610286,1717607449196,-150.0,0.00029467,2]
[328610287,1717607449205,-150.0,0.00029471,2]
[328610288,1717607449214,-150.0,0.00029472,2]
[328610289,1717607449223,-150.0,0.00029473,2]
[328610290,1717607449233,-150.0,0.00029478,2]
[328610291,1717607449242,-106231.52709735,0.0002948,7]
[328610292,1717607449251,-500.0,0.0002948,2]
[328610293,1717607449260,-500.0,0.0002948,2]
[328610294,1717607449269,-500.0,0.0002948,2]
[328610295,1717607449278,-500.0,0.0002948,2]
[328610296,1717607449287,-500.0,0.0002948,2]
[328610297,1717607449298,-500.0,0.0002948,2]
[328610298,1717607449308,-500.0,0.0002948,2]
[328610299,1717607449317,-500.0,0.0002948,2]
[328610300,1717607449327,-500.0,0.0002948,2]
[328610301,1717607449336,-500.0,0.0002948,2]
[328610302,1717607449345,-500.0,0.0002948,2]
[328610303,1717607449355,-500.0,0.0002948,2]
[328610304,1717607449364,-500.0,0.0002948,2]
[328610305,1717607449375,-500.0,0.0002948,2]
[328610306,1717607449384,-500.0,0.0002948,2]
[328610307,1717607449394,-500.0,0.0002948,2]
[328610308,1717607449407,-500.0,0.0002948,2]
[328610309,1717607449416,-500.0,0.0002948,2]
[328610310,1717607449425,-500.0,0.0002948,2]
[328610311,1717607449435,-500.0,0.0002948,2]
[328610312,1717607449445,-500.0,0.0002948,2]
[328610313,1717607449454,-500.0,0.0002948,2]
[328610314,1717607449463,-500.0,0.0002948,2]
[328610315,1717607449473,-500.0,0.0002948,2]
[328610316,1717607449484,-500.0,0.0002948,2]
[328610317,1717607449494,-500.0,0.0002948,2]
[328610318,1717607449503,-500.0,0.0002948,2]
[328610319,1717607449513,-500.0,0.0002948,2]
[328610320,1717607449522,-500.0,0.0002948,2]
[328610321,1717607449531,-16630.4483977,0.00029485,2]
[328610322,1717607449540,-5219.0066238,0.00029485,2]
[328610323,1717607449551,-14020.4683037,0.00029485,2]
[328610324,1717607449560,-151.55,0.00029489,2]
[328610325,1717607449570,-154.22,0.0002949,2]
[328610326,1717607449579,-154.22,0.0002949,2]
[328610327,1717607449589,-151.55,0.0002949,2]
[328610328,1717607449598,-151.55,0.0002949,2]
[328610329,1717607449607,-151.55,0.0002949,2]
[328610330,1717607449616,-151.55,0.0002949,2]
[328610331,1717607449625,-151.55,0.0002949,2]
[328610332,1717607449634,-151.55,0.0002949,2]
[328610333,1717607449644,-151.55,0.0002949,2]
[328610334,1717607449652,-151.55,0.0002949,2]
[328610335,1717607449662,-151.55,0.0002949,2]
[328610336,1717607449671,-151.55,0.0002949,2]
[328610337,1717607449680,-151.55,0.0002949,2]
[328610338,1717607449690,-151.55,0.0002949,2]
[328610339,1717607449699,-1595.90594971,0.00029491,2]
[328610340,1717607449708,-150.0,0.00029495,2]
[328610341,1717607449718,-500.0,0.00029496,4]
[328610342,1717607449728,-500.0,0.00029496,4]
[328610343,1717607449737,-500.0,0.00029496,2]
[328610344,1717607449747,-500.0,0.00029496,2]
[328610345,1717607449756,-500.0,0.00029497,4]
[328610346,1717607449765,-1570.57,0.00029497,4]
[328610347,1717607449774,-500.0,0.00029497,4]
[328610348,1717607449783,-500.0,0.00029497,4]
[328610349,1717607449793,-500.0,0.00029497,4]
[328610350,1717607449804,-328.23067859,0.00029497,4]
[328610351,1717607449813,-819.91,0.00029497,4]
[328610352,1717607449823,-500.0,0.00029497,4]
[328610353,1717607449832,-500.0,0.00029497,4]
[328610354,1717607449842,-500.0,0.00029497,4]
[328610355,1717607449851,-703.86,0.00029497,4]
[328610356,1717607449860,-208.72501019,0.00029498,2]
[328610357,1717607449870,-5889.05435153,0.00029498,2]
[328610358,1717607449881,-26492.12419625,0.00029498,2]
[328610359,1717607449892,-506.32296391,0.00029498,2]
[328610360,1717607449901,-177.37930338,0.00029498,4]
[328610361,1717607449911,-500.0,0.00029498,2]
[328610362,1717607449920,-500.0,0.00029498,2]
[328610363,1717607449929,-500.0,0.00029498,2]
[328610364,1717607449938,-500.0,0.00029498,4]
[328610365,1717607449948,-500.0,0.00029498,4]
[328610366,1717607449958,-500.0,0.00029498,4]
[328610367,1717607449968,-1734.57,0.00029498,4]
[328610368,1717607449977,-636.59,0.00029498,4]
[328610369,1717607449986,-500.0,0.00029498,4]
[328610370,1717607449996,-947.27,0.00029498,4]
[328610371,1717607450006,-2351.73,0.00029498,4]
[328610372,1717607450015,-500.0,0.00029498,4]
[328610373,1717607450025,-500.0,0.00029498,4]
[328610374,1717607450034,-500.0,0.00029498,4]
[328610375,1717607450044,-500.0,0.00029498,4]
[328610376,1717607450055,-2100.0,0.00029499,2]
[328610377,1717607450064,-2000.0,0.00029499,2]
[328610378,1717607450076,-200.0,0.00029499,2]
[328610379,1717607450086,-500.0,0.00029499,2]
[328610380,1717607450095,-500.0,0.00029499,2]
[328610381,1717607450104,-500.0,0.00029499,2]
[328610382,1717607450113,-500.0,0.00029499,2]
[328610383,1717607450122,-68.64028121,0.00029499,2]
[328610384,1717607450139,-431.35971879,0.00029499,2]
[328610385,1717607450149,-457.29144041,0.00029499,2]
[328610386,1717607516892,200.0,0.00029,90]
[328610397,1717608332372,-233.22,0.00029808,30]
[328610398,1717608332421,-8760.088635,0.000308,30]
[328610399,1717608332445,-8760.088635,0.000308,30]
[328610400,1717608332469,-1401.483024,0.000308,30]
[328610401,1717608332493,-1401.483024,0.000308,30]
[328610402,1717608332517,-1401.483023,0.000308,30]
[328610403,1717608332542,-1401.483023,0.000308,30]
[328610404,1717608332568,-900.0,0.00031,32]
[328610405,1717608332592,-523.36056086,0.00031096,30]
[328610406,1717608332617,-523.36056086,0.00031233,30]
[328610407,1717608332642,-523.36056086,0.0003137,30]
[328610408,1717608332669,-523.36056086,0.00031507,30]
[328610409,1717608332698,-523.36056086,0.00031616,30]
[328610410,1717608332724,-523.36056086,0.00031753,30]
[328610411,1717608332748,-523.36056086,0.0003189,30]
[328610412,1717608332776,-300.0,0.00032,30]
[328610413,1717608332799,-900.0,0.00032,33]
[328610414,1717608332828,-523.36056086,0.00032027,30]
[328610415,1717608332854,-523.36056086,0.00032164,30]
[328610416,1717608332882,-523.36056086,0.00032274,30]
[328610417,1717608332907,-523.36056086,0.00032411,30]
[328610418,1717608332931,-200.15062748,0.000325,30]
[328610419,1717608332956,-300.0,0.000325,30]
[328610420,1717608332980,-523.36056086,0.00032548,30]
[328610421,1717608333005,-523.36056086,0.00032685,30]
[328610422,1717608333030,-1864.97,0.00032809,30]
[328610423,1717608333054,-1864.97,0.00032809,30]
[328610424,1717608333077,-523.36056086,0.00032822,30]
[328610425,1717608333101,-166.41438615,0.00032876,30]
[328610426,1717608333124,-507.96033274,0.00032876,30]
[328610427,1717608333150,-750.0,0.00032876,30]
[328610428,1717608333173,-750.0,0.00032876,30]
[328610429,1717608333196,-750.0,0.00032876,30]
[328610430,1717608333218,-750.0,0.00032876,30]
[328610431,1717608333242,-245.12529387,0.00032876,30]
[328610432,1717608333271,-222.38965566,0.000329,30]
[328610433,1717608333295,-191674.09169319,0.000329,30]
[328610434,1717608333324,-523.36056086,0.00032932,30]
[328610435,1717608333349,-900.0,0.00033,34]
[328610436,1717608333374,-1208.0,0.00033054,30]
[328610437,1717608333398,-1864.97,0.00033082,30]
[328610438,1717608333421,-1864.97,0.00033082,30]
[328610439,1717608333449,-1864.97,0.00033356,30]
[328610440,1717608333473,-1864.97,0.00033356,30]
[328610441,1717608333522,-1864.97,0.00033629,30]
[328610442,1717608333546,-1864.97,0.00033629,30]
[328610443,1717608333572,-1864.97,0.00033902,30]
[328610444,1717608333595,-1864.97,0.00033902,30]
[328610445,1717608333620,-1864.97,0.00034175,30]
[328610446,1717608333643,-1864.97,0.00034175,30]
[328610447,1717608333669,-1864.97,0.00034448,30]
[328610448,1717608333695,-1864.97,0.00034448,30]
[328610449,1717608333718,-2190.022158,0.000346,30]
[328610450,1717608333742,-350.370756,0.000346,30]
[328610451,1717608333768,-350.370755,0.000346,30]
[328610452,1717608333792,-1864.97,0.00034722,30]
[328610453,1717608333818,-1864.97,0.00034722,30]
[328610454,1717608333841,-400.0,0.00034748,31]
[328610455,1717608333865,-233.22,0.0003479,30]
[328610456,1717608333889,-1864.97,0.00034995,30]
[328610457,1717608333913,-1864.97,0.00034995,30]
[328610458,1717608333939,-11665.29025891,0.00035,30]
[328610459,1717608333963,-112178.96649332,0.00035,30]
[328610460,1717608333986,-1702.80220989,0.00035,30]
[328610461,1717608334009,-1630.34297872,0.00035,30]
[328610462,1717608334032,-450.0,0.0003502,30]
[328610463,1717608334218,-1864.97,0.00035268,30]
[328610464,1717608334242,-1864.97,0.00035268,30]
[328610465,1717608334266,-1611.01582298,0.00036,120]
[328610466,1717608334289,-450.0,0.0003626,30]
[328610467,1717608334313,-450.0,0.000375,30]
[328610468,1717608334336,-318.26013336,0.00038,30]
[328610469,1717608334360,-1388.90429752,0.000384,33]
[328610470,1717608334384,-450.0,0.0003874,30]
[328610471,1717608334422,-1269.63841883,0.000389,30]
[328610472,1717608334449,-1000.0,0.00039154,60]
[328610473,1717608334474,-17211.68506283,0.00039429,60]
[328610474,1717608334498,-1049.55745877,0.00039429,60]
[328610475,1717608334523,-2996.51122439,0.00039429,60]
[328610476,1717608334548,-11986.04589756,0.00039429,60]
[328610477,1717608334575,-233.22,0.00039771,30]
[328610478,1717608334599,-663.32528051,0.0003998,30]
[328610479,1717608334628,-50000.0,0.0004,30]